Workbook

Sheet Procedure

Sheet form(Warranty)
B4: To
L7: Warranty of Compliance with PFU’s Requirement for Chemical Substance (Rev.15L01)
B10: We hereby declare and warrant that we comply with PFU Limited ("PFU")'s Group Standard in supplying PFU Group with the below
B11: listed Product, even if the Product is altered in any elements as far as the Product remains the same in name and part number.
B14: We agree that for the purpose of the above warranty, the terms are defined as follows:
B17: 1. PRODUCT
C19: Products stipulated in the attached product list [ List No.: | X19: ]
B22: 2. PFU’S GROUP STANDARD
C24: RESTRICTED SUBSTANCES | J24: THRESHOLD | S24: Remark
C25: (1) Lead and its compounds | J25: Its concentration in Material(*) shall not exceed 1000 ppm | S25: Make sure to enter exempted applications in the Product List, if applicable.
C26: (2) Mercury and its compounds | J26: Its concentration in Material(*) shall not exceed 1000 ppm
C27: (3) Cadmium and its compounds | J27: Its concentration in Material(*) shall not exceed 100 ppm
C28: (4) Hexavalent chromium and Hexavalent chromium compounds | J28: Its concentration in Material(*) shall not exceed 1000 ppm
C29: (5) Polybrominated biphenyls (PBBs) | J29: Its concentration in Material(*) shall not exceed 1000 ppm
C30: (6) Polybrominated diphenyl Ethers (PBDEs) | J30: Its concentration in Material(*) shall not exceed 1000 ppm
C31: For compliance of the following (7) ~ (10) [ PFU Group Standard restriction effective, Jan 22, 2019 ] see Remark at right. | S31: Make sure to enter phthalic esters compliance in the Product List.
C32: (7) Bis(2-ethylhexyl) phthalate (DEHP) | J32: Its concentration in Material(*) shall not exceed 1000 ppm
C33: (8) Butyl benzyl phthalate (BBP) | J33: Its concentration in Material(*) shall not exceed 1000 ppm
C34: (9) Dibutyl phthalate (DBP) | J34: Its concentration in Material(*) shall not exceed 1000 ppm
C35: (10) Diisobutyl phthalate (DIBP) | J35: Its concentration in Material(*) shall not exceed 1000 ppm
B37: 3. REMARKS
B47: Date (M/D/Y):
B48: Person responsible:
B49: Signature:
B52: Department:
B53: Company:
B54: Phone:
B55: E-mail:
B61: Appendix. EXEMPTED APPLICATIONS FROM CONTAINMENT RESTRICTION (REFERENCE LIST)
C63: The following table is quoted from the Official Journal of the European Union.
C64: For any exempted applications other than below, see the Official Journal.
B66: No. | D66: EXEMPTED APPLICATIONS FROM CONTAIMENT RESTRICTION | T66: Ｐｂ | U66: Ｈｇ | X66: Ｃｄ
B67: 3(a) | D67: Mercury in cold cathode fluorescent lamps and external electrode fluorescent lamps (CCFL and EEFL) | U67: ●
D68: for special purposes not exceeding (per lamp):
D69: - Short length ( ≤ 500 mm): 3,5 mg may be used per lamp
B70: 3(b) | D70: Mercury in cold cathode fluorescent lamps and external electrode fluorescent lamps (CCFL and EEFL) | U70: ●
D71: for special purposes not exceeding (per lamp):
D72: - Medium length ( > 500 mm and ≤ 1500 mm): 5 mg may be used per lamp
B73: 3(c) | D73: Mercury in cold cathode fluorescent lamps and external electrode fluorescent lamps (CCFL and EEFL) | U73: ●
D74: for special purposes not exceeding (per lamp):
D75: - Long length ( > 1,500 mm): 13 mg may be used per lamp
B76: 5(b) | D76: Lead in glass of fluorescent tubes not exceeding 0,2 % by weight | T76: ●
B77: 6(a)-I | D77: Lead as an alloying element in steel for machining purposes containing up to 0,35 % lead by weight and in batch hot dip galvanised steel components containing up to 0,2 % lead by weight | T77: ●
B78: 6(b)-I | D78: Lead as an alloying element in aluminium containing up to 0,4 % lead by weight, provided it stems from lead-bearing aluminium scrap recycling | T78: ●
B79: 6(b)-II | D79: Lead as an alloying element in aluminium for machining purposes with a lead content up to 0,4 % by weight | T79: ●
B80: 6(c) | D80: Copper alloy containing up to 4 % lead by weight | T80: ●
B81: 7(a) | D81: Lead in high melting temperature type solders (i.e. lead-based alloys containing 85 % by weight or more lead) | T81: ●
B82: 7(c)-I | D82: Electrical and electronic components containing lead in a glass or ceramic other than dielectric ceramic in capacitors, | T82: ●
D83: e.g. piezoelectronic devices, or in a glass or ceramic matrix compound
B84: 7(c)-II | D84: Lead in dielectric ceramic in capacitors for a rated voltage of 125 V AC or 250 V DC or higher | T84: ●
B85: 8(b) | D85: Cadmium and its compounds in electrical contacts | X85: ●
B86: 13(a) | D86: Lead in white glasses used for optical applications | T86: ●
B87: 13(b)-(I) | D87: Lead in ion coloured optical filter glass types | T87: ●
B88: 13(b)-(II) | D88: Cadmium in striking optical filter glass types; excluding applications falling under point 39 of this Annex * Exclusion number 39 (Excluded unused in this regulation): Cadmium included in color conversion II - VI compound semiconductor LED (cadmiumper mm2 of light emitting area <10 μg) for illumination or display system applications. | X88: ●
B89: 13(b)-(III) | D89: Cadmium and Lead in glazes used for reflectance standards | T89: ● | X89: ●
B90: 15 | D90: Lead in solders to complete a viable electrical connection between semiconductor die and carrier within integrated circuit flip chip packages | T90: ●
B91: 34 | D91: Lead in cermet-based trimmer potentiometer elements | T91: ●
Y92: form Rev.15L01
B93: * Homogeneous Material
B94: "Homogeneous Material" means a material that cannot be mechanically disjointed into different materials.
B95: The term "Homogeneous" is understood as "of uniform composition throughout", so examples of "Homogeneous Materials"
B96: would be individual types of plastics, ceramics, glass, metals, alloys, paper, board, resins and coatings.
B97: The term "mechanically disjointed" means that the materials can, in principle, be separated by mechanical actions such as
B98: unscrewing, cutting, crushing, grinding and abrasive processes.

Sheet manual(Warranty)
B4: To | C4: PFU Limited
L7: Warranty of Compliance with PFU’s Requirement for Chemical Substance (Rev.15L01)
B10: We hereby declare and warrant that we comply with PFU Limited ("PFU")'s Group Standard in supplying PFU Group with the below
B11: listed Product, even if the Product is altered in any elements as far as the Product remains the same in name and part number.
B14: We agree that for the purpose of the above warranty, the terms are defined as follows:
B17: 1. PRODUCT
C19: Products stipulated in the attached product list [ List No.: | L19: LIST-20180001 | X19: ]
B22: 2. PFU’S GROUP STANDARD
C24: RESTRICTED SUBSTANCES | J24: THRESHOLD | S24: Remark
C25: (1) Lead and its compounds | J25: Its concentration in Material(*) shall not exceed 1000 ppm | S25: Make sure to enter exempted applications in the Product List, if applicable.
C26: (2) Mercury and its compounds | J26: Its concentration in Material(*) shall not exceed 1000 ppm
C27: (3) Cadmium and its compounds | J27: Its concentration in Material(*) shall not exceed 100 ppm
C28: (4) Hexavalent chromium and Hexavalent chromium compounds | J28: Its concentration in Material(*) shall not exceed 1000 ppm
C29: (5) Polybrominated biphenyls (PBBs) | J29: Its concentration in Material(*) shall not exceed 1000 ppm
C30: (6) Polybrominated diphenyl Ethers (PBDEs) | J30: Its concentration in Material(*) shall not exceed 1000 ppm
C31: For compliance of the following (7)～(10) [ PFU Group Standard restriction effective, Jan 22, 2019 ] see Remark at right. | S31: Make sure to enter phthalic esters compliance in the Product List.
C32: (7) Bis(2-ethylhexyl) phthalate (DEHP) | J32: Its concentration in Material(*) shall not exceed 1000 ppm
C33: (8) Butyl benzyl phthalate (BBP) | J33: Its concentration in Material(*) shall not exceed 1000 ppm
C34: (9) Dibutyl phthalate (DBP) | J34: Its concentration in Material(*) shall not exceed 1000 ppm
C35: (10) Diisobutyl phthalate (DIBP) | J35: Its concentration in Material(*) shall not exceed 1000 ppm
B37: 3. REMARKS
B47: Date (M/D/Y): | F47: 2018-10-29
B48: Person responsible: | F48: Taro Fuji, Director
B49: Signature:
B52: Department: | F52: Quality Assurance Dep.
B53: Company: | F53: ABC Corp.
B54: Phone: | F54: xxx-xxx-xxxx
B55: E-mail: | F55: xxxx@xxxxx.xxxxx.xx.xx
B61: Appendix. EXEMPTED APPLICATIONS FROM CONTAINMENT RESTRICTION (REFERENCE LIST)
C63: The following table is quoted from the Official Journal of the European Union.
C64: For any exempted applications other than below, see the Official Journal.
B66: No. | D66: EXEMPTED APPLICATIONS FROM CONTAIMENT RESTRICTION | T66: Ｐｂ | U66: Ｈｇ | X66: Ｃｄ
B67: 3(a) | D67: Mercury in cold cathode fluorescent lamps and external electrode fluorescent lamps (CCFL and EEFL) | U67: ●
D68: for special purposes not exceeding (per lamp):
D69: - Short length ( ≤ 500 mm): 3,5 mg may be used per lamp
B70: 3(b) | D70: Mercury in cold cathode fluorescent lamps and external electrode fluorescent lamps (CCFL and EEFL) | U70: ●
D71: for special purposes not exceeding (per lamp):
D72: - Medium length ( > 500 mm and ≤ 1500 mm): 5 mg may be used per lamp
B73: 3(c) | D73: Mercury in cold cathode fluorescent lamps and external electrode fluorescent lamps (CCFL and EEFL) | U73: ●
D74: for special purposes not exceeding (per lamp):
D75: - Long length ( > 1,500 mm): 13 mg may be used per lamp
B76: 5(b) | D76: Lead in glass of fluorescent tubes not exceeding 0,2 % by weight | T76: ●
B77: 6(a)-I | D77: Lead as an alloying element in steel for machining purposes containing up to 0,35 % lead by weight and in batch hot dip galvanised steel components containing up to 0,2 % lead by weight | T77: ●
B78: 6(b)-I | D78: Lead as an alloying element in aluminium containing up to 0,4 % lead by weight, provided it stems from lead-bearing aluminium scrap recycling | T78: ●
B79: 6(b)-II | D79: Lead as an alloying element in aluminium for machining purposes with a lead content up to 0,4 % by weight | T79: ●
B80: 6(c) | D80: Copper alloy containing up to 4 % lead by weight | T80: ●
B81: 7(a) | D81: Lead in high melting temperature type solders (i.e. lead-based alloys containing 85 % by weight or more lead) | T81: ●
B82: 7(c)-I | D82: Electrical and electronic components containing lead in a glass or ceramic other than dielectric ceramic in capacitors, | T82: ●
D83: e.g. piezoelectronic devices, or in a glass or ceramic matrix compound
B84: 7(c)-II | D84: Lead in dielectric ceramic in capacitors for a rated voltage of 125 V AC or 250 V DC or higher | T84: ●
B85: 8(b) | D85: Cadmium and its compounds in electrical contacts | X85: ●
B86: 13(a) | D86: Lead in white glasses used for optical applications | T86: ●
B87: 13(b)-(I) | D87: Lead in ion coloured optical filter glass types | T87: ●
B88: 13(b)-(II) | D88: Cadmium in striking optical filter glass types; excluding applications falling under point 39 of this Annex * Exclusion number 39 (Excluded unused in this regulation): Cadmium included in color conversion II - VI compound semiconductor LED (cadmiumper mm2 of light emitting area <10 μg) for illumination or display system applications. | X88: ●
B89: 13(b)-(III) | D89: Cadmium and Lead in glazes used for reflectance standards | T89: ● | X89: ●
B90: 15 | D90: Lead in solders to complete a viable electrical connection between semiconductor die and carrier within integrated circuit flip chip packages | T90: ●
B91: 34 | D91: Lead in cermet-based trimmer potentiometer elements | T91: ●
Y92: form Rev.15L01
B93: * Homogeneous Material
B94: "Homogeneous Material" means a material that cannot be mechanically disjointed into different materials.
B95: The term "Homogeneous" is understood as "of uniform composition throughout", so examples of "Homogeneous Materials"
B96: would be individual types of plastics, ceramics, glass, metals, alloys, paper, board, resins and coatings.
B97: The term "mechanically disjointed" means that the materials can, in principle, be separated by mechanical actions such as
B98: unscrewing, cutting, crushing, grinding and abrasive processes.

Sheet form(Product_List)
I2: Date (M/D/Y): | J2: =IF(ISBLANK('form(Warranty)'!F47),"",'form(Warranty)'!F47) -> 
I3: Person responsible: | J3: =IF(ISBLANK('form(Warranty)'!F48),"",'form(Warranty)'!F48) -> 
E6: Product List for "Warranty of Compliance with PFU's Requirement for Chemical Substance" | I6: Signature:
H7: (Rev.15L01) | I7: Department: | J7: =IF(ISBLANK('form(Warranty)'!F52),"",'form(Warranty)'!F52) -> 
I8: Company: | J8: =IF(ISBLANK('form(Warranty)'!F53),"",'form(Warranty)'!F53) -> 
C9: List No. | E9: =IF(ISBLANK('form(Warranty)'!L19),"",'form(Warranty)'!L19) -> 
B11: No. | C11: Product | H11: Exempted Applications | I11: Phthalic Esters Compliance | K11: REMARKS
C12: Survey ID | D12: PFU Group Product No. | E12: Product Name | F12: Manufacturer's P/N [* Reference] | G12: Manufacturer's Name [* Reference] | H12: <How to Enter Data> ■Select the cell and double click → the Configuration window opens to enter data. * Direct entry is available. See the note below.
H13: <Note for Direct Entry> ・Use half-width alphanumeric ・Separate applications with a half-width comma * No entry is considered to be no exemptions. | I13: ＜Note for Direct Entry＞ ・Select from the pull down list (mandatory) 1: Guaranteed 2: Not guaranteed (e.g. 1: Under investigation, e.g. 2: Will investigate, e.g.3: Contained)
B14: 1
B15: =B14+1 -> 2
B16: 3
B17: 4
B18: 5
B19: 6
B20: 7
B21: 8
B22: 9
B23: 10
B24: 11
B25: 12
B26: 13
B27: 14
B28: 15
B29: 16
B30: 17
B31: 18
B32: 19
B33: 20
B34: 21
B35: 22
B36: 23
B37: 24
B38: 25
B39: 26
B40: 27
B41: 28
B42: 29
B43: 30
B44: 31
B45: 32
B46: 33
B47: =B46+1 -> 34
B48: 35
B49: 36
B50: 37
B51: 38
B52: 39
B53: 40
B54: 41
B55: 42
B56: 43
B57: 44
B58: 45
B59: 46
B60: 47
B61: 48
B62: 49
B63: 50
B64: 51
B65: 52
B66: 53
B67: 54
B68: 55
B69: 56
B70: 57
B71: 58
B72: 59
B73: 60
B74: 61
B75: 62
B76: 63
B77: 64
B78: 65
B79: =B78+1 -> 66
B80: 67
B81: 68
B82: 69
B83: 70
B84: 71
B85: 72
B86: 73
B87: 74
B88: 75
B89: 76
B90: 77
B91: 78
B92: 79
B93: 80
B94: 81
B95: 82
B96: 83
B97: 84
B98: 85
B99: 86
B100: 87
B101: 88
B102: 89
B103: 90
B104: 91
B105: 92
B106: 93
B107: 94
B108: 95
B109: 96
B110: 97
B111: =B110+1 -> 98
B112: 99
B113: 100
B114: 101
B115: 102
B116: 103
B117: 104
B118: 105
B119: 106
B120: 107
B121: 108
B122: 109
B123: 110
B124: 111
B125: 112
B126: 113
B127: 114
B128: 115
B129: 116
B130: 117
B131: 118
B132: 119
B133: 120
B134: 121
B135: 122
B136: 123
B137: 124
B138: 125
B139: 126
B140: 127
B141: 128
B142: 129
B143: 130
B144: 131
B145: 132
B146: 133
B147: 134
B148: 135
B149: 136
B150: 137
B151: 138
B152: 139
B153: 140
B154: 141
B155: 142
B156: 143
B157: 144
B158: 145
B159: 146
B160: 147
B161: 148
B162: 149
B163: 150
B164: 151
B165: 152
B166: 153
B167: 154
B168: 155
B169: 156
B170: 157
B171: 158
B172: 159
B173: 160
B174: 161
B175: =B174+1 -> 162
B176: 163
B177: 164
B178: 165
B179: 166
B180: 167
B181: 168
B182: 169
B183: 170
B184: 171
B185: 172
B186: 173
B187: 174
B188: 175
B189: 176
B190: 177
B191: 178
B192: 179
B193: 180
B194: 181
B195: 182
B196: 183
B197: 184
B198: 185
B199: 186
B200: 187
B201: 188
B202: 189
B203: 190
B204: 191
... 2809 more rows

Sheet manual(Product_List)
I2: Date (M/D/Y): | J2: =IF(ISBLANK('manual(Warranty)'!F47),"",'manual(Warranty)'!F47) -> 2018-10-29
I3: Person responsible: | J3: =IF(ISBLANK('manual(Warranty)'!F48),"",'manual(Warranty)'!F48) -> Taro Fuji, Director
E6: Product List for "Warranty of Compliance with PFU's Requirement for Chemical Substance" | I6: Signature:
H7: (Rev.15L01) | I7: Department: | J7: =IF(ISBLANK('manual(Warranty)'!F52),"",'manual(Warranty)'!F52) -> Quality Assurance Dep.
I8: Company: | J8: =IF(ISBLANK('manual(Warranty)'!F53),"",'manual(Warranty)'!F53) -> ABC Corp.
C9: List No. | E9: =IF(ISBLANK('manual(Warranty)'!L19),"",'manual(Warranty)'!L19) -> LIST-20180001
B11: No. | C11: Product | H11: Exempted Applications | I11: Phthalic Esters Compliance | K11: REMARKS
C12: Survey ID | D12: PFU Group Product No. | E12: Product Name | F12: Manufacturer's P/N [* Reference] | G12: Manufacturer's Name [* Reference] | H12: <How to Enter Data> ■Select the cell and double click → the Configuration window opens to enter data. * Direct entry is available. See the note below.
H13: <Note for Direct Entry> ・Use half-width alphanumeric ・Separate applications with a half-width comma * No entry is considered to be no exemptions. | I13: ＜Note for Direct Entry＞ ・Select from the pull down list (mandatory) 1: Guaranteed 2: Not guaranteed (e.g. 1: Under investigation, e.g. 2: Will investigate, e.g.3: Contained)
B14: 1 | C14: -1230001 | D14: PAXXXX1-XXXX | E14: Power supply unit | F14: ABC-0121XX | G14: CDE Co. | H14: 7(c)-I | I14: 1: Guaranteed
B15: =B14+1 -> 2 | C15: -1230002 | D15: PAXXXX2-XXXX | E15: Mouse | F15: ABC-0122XX | G15: FGH Ltd. | H15: 7(a),7(c)-I | I15: 1: Guaranteed
B16: 3 | C16: -1230003 | D16: PAXXXX3-XXXX | E16: Keyboard | F16: ABC-0123XX | G16: IJG Corp. | H16: None | I16: 2: Not guaranteed
B17: 4
B18: 5
B19: 6
B20: 7
B21: 8
B22: 9
B23: 10
B24: 11
B25: 12
B26: 13
B27: 14
B28: 15
B29: 16
B30: 17
B31: 18
B32: 19
B33: 20
B34: 21
B35: 22
B36: 23
B37: 24
B38: 25
B39: 26
B40: 27
B41: 28
B42: 29
B43: 30
B44: 31
B45: 32
B46: 33
B47: 34
B48: 35
B49: 36
B50: 37
B51: 38
B52: 39
B53: 40
B54: 41
B55: 42
B56: 43
B57: 44
B58: 45
B59: 46
B60: 47
B61: 48
B62: 49
B63: 50
B64: 51
B65: 52
B66: 53
B67: 54
B68: 55
B69: 56
B70: 57
B71: 58
B72: 59
B73: 60
B74: 61
B75: 62
B76: 63
B77: 64
B78: 65
B79: =B78+1 -> 66
B80: 67
B81: 68
B82: 69
B83: 70
B84: 71
B85: 72
B86: 73
B87: 74
B88: 75
B89: 76
B90: 77
B91: 78
B92: 79
B93: 80
B94: 81
B95: 82
B96: 83
B97: 84
B98: 85
B99: 86
B100: 87
B101: 88
B102: 89
B103: 90
B104: 91
B105: 92
B106: 93
B107: 94
B108: 95
B109: 96
B110: 97
B111: 98
B112: 99
B113: 100
B114: 101
B115: 102
B116: 103
B117: 104
B118: 105
B119: 106
B120: 107
B121: 108
B122: 109
B123: 110
B124: 111
B125: 112
B126: 113
B127: 114
B128: 115
B129: 116
B130: 117
B131: 118
B132: 119
B133: 120
B134: 121
B135: 122
B136: 123
B137: 124
B138: 125
B139: 126
B140: 127
B141: 128
B142: 129
B143: =B142+1 -> 130
B144: 131
B145: 132
B146: 133
B147: 134
B148: 135
B149: 136
B150: 137
B151: 138
B152: 139
B153: 140
B154: 141
B155: 142
B156: 143
B157: 144
B158: 145
B159: 146
B160: 147
B161: 148
B162: 149
B163: 150
B164: 151
B165: 152
B166: 153
B167: 154
B168: 155
B169: 156
B170: 157
B171: 158
B172: 159
B173: 160
B174: 161
B175: 162
B176: 163
B177: 164
B178: 165
B179: 166
B180: 167
B181: 168
B182: 169
B183: 170
B184: 171
B185: 172
B186: 173
B187: 174
B188: 175
B189: 176
B190: 177
B191: 178
B192: 179
B193: 180
B194: 181
B195: 182
B196: 183
B197: 184
B198: 185
B199: 186
B200: 187
B201: 188
B202: 189
B203: 190
B204: 191
... 2809 more rows
